bitfinex/quotes_SOLUSD_20250306
["timestamp","ask_amount","ask_price","bid_price","bid_amount"]
[1741245733902,128.4844,149.6,149.59,0.03]
[1741245734519,6.6844,149.6,149.59,0.03]
[1741245735429,11.68482019,149.6,149.59,0.03]
[1741245737223,5.00042019,149.6,149.59,0.03]
[1741245737603,5.00042019,149.6,149.59,17.40313612]
[1741245739405,5.00042019,149.6,149.59,42.73768498]
[1741245739610,47.6809,149.68,149.6,0.56864628]
[1741245739810,47.6809,149.68,149.65,0.14216157]
[1741245740441,47.6809,149.68,149.65,312.14216157]
[1741245741039,4.97325971,149.67,149.65,312.14216157]
[1741245741545,85.77325971,149.67,149.66,17.37313612]
[1741245742313,85.77325971,149.67,149.66,0.14216157]
[1741245743214,4.97325971,149.67,149.66,17.37313612]
[1741245745215,87.64950373,149.69,149.67,0.56864628]
[1741245745412,87.64950373,149.69,149.67,17.37313612]
[1741245746022,87.64950373,149.69,149.67,0.56864628]
[1741245746221,87.64950373,149.69,149.67,312.56864628]
[1741245746423,87.64950373,149.69,149.67,329.37313612]
[1741245746621,0.16900373,149.69,149.68,17.37313612]
[1741245746830,6.84940373,149.69,149.68,17.37313612]
[1741245747132,6.84940373,149.69,149.68,0.56864628]
[1741245747322,6.84940373,149.69,149.68,17.37313612]
[1741245747519,6.84940373,149.69,149.68,0.14216157]
[1741245748037,11.82354409,149.69,149.68,0.14216157]
[1741245748631,11.82354409,149.69,149.63,16.80448984]
[1741245748811,121.8,149.68,149.63,16.80448984]
[1741245749010,121.8,149.68,149.64,0.14216157]
[1741245749216,121.8,149.68,149.66,16.94665141]
[1741245749423,4.97414036,149.67,149.66,17.37313612]
[1741245750534,4.97414036,149.67,149.66,329.37313612]
[1741245750732,80.8,149.68,149.67,0.56864628]
[1741245751039,80.8,149.68,149.67,17.37313612]
[1741245751414,0.16900373,149.69,149.68,0.14216157]
[1741245751637,0.16900373,149.69,149.68,17.37313612]
[1741245753147,6.84940373,149.69,149.68,0.14216157]
[1741245753335,6.84940373,149.69,149.65,16.80448984]
[1741245753721,4.97906195,149.68,149.66,0.56864628]
[1741245753954,4.97906195,149.68,149.66,0.42648471]
[1741245754143,80.8,149.67,149.66,312.0]
[1741245754352,80.8,149.67,149.63,16.80448984]
[1741245754535,80.8,149.66,149.64,0.56864628]
[1741245754932,85.77906195,149.66,149.64,0.56864628]
[1741245755257,87.4822,149.65,149.61,16.80448984]
[1741245755560,104.1878,149.65,149.62,0.42648471]
[1741245756325,4.97906195,149.64,149.6,16.80448984]
[1741245756648,121.8,149.63,149.59,0.03]
[1741245756825,121.8,149.63,149.59,0.45648471]
[1741245757226,6.6835,149.62,149.6,0.56864628]
[1741245757428,6.6835,149.62,149.6,17.37313612]
[1741245758135,128.4832,149.63,149.6,17.37313612]
[1741245758441,80.8,149.63,149.62,17.37313612]
[1741245759644,87.4831,149.63,149.62,17.37313612]
[1741245760445,87.4831,149.63,149.62,0.14216157]
[1741245760627,87.4831,149.63,149.6,0.56864628]
[1741245761345,87.4831,149.63,149.6,312.56864628]
[1741245761545,104.1909,149.63,149.59,0.03]
[1741245761740,121.8,149.62,149.59,0.03]
[1741245762322,4.98073436,149.61,149.59,0.03]
[1741245762519,80.8,149.6,149.59,0.03]
[1741245763738,85.78073436,149.6,149.59,0.17216157]
[1741245763941,85.78073436,149.6,149.59,17.40313612]
[1741245764643,85.78073436,149.6,149.59,329.40313612]
[1741245765046,4.98073436,149.6,149.59,329.40313612]
[1741245765248,80.8,149.62,149.61,0.14216157]
[1741245765556,80.8,149.62,149.61,16.94665141]
[1741245766457,85.77988294,149.62,149.61,16.94665141]
[1741245766658,92.46338294,149.62,149.61,0.14216157]
[1741245767832,87.4835,149.62,149.61,0.14216157]
[1741245768250,80.8,149.62,149.61,17.37313612]
[1741245768456,80.8,149.62,149.61,329.37313612]
[1741245769154,80.8,149.64,149.63,0.14216157]
[1741245769330,80.8,149.66,149.65,0.14216157]
[1741245769535,87.4818,149.66,149.65,0.14216157]
[1741245769958,87.4818,149.66,149.64,0.14216157]
[1741245770254,92.46570246,149.66,149.64,0.14216157]
[1741245771554,4.98390246,149.65,149.64,0.14216157]
[1741245771855,4.98390246,149.65,149.63,0.14216157]
[1741245771856,11.66610246,149.65,149.63,0.14216157]
[1741245772742,80.8,149.64,149.63,0.14216157]
[1741245772946,85.78390246,149.64,149.63,0.14216157]
[1741245773858,92.46660246,149.64,149.63,0.14216157]
[1741245774060,11.66660246,149.64,149.63,0.14216157]
[1741245776664,41.0,149.63,149.59,0.03]
[1741245777244,4.98390246,149.62,149.59,0.03]
[1741245777935,6.684,149.61,149.59,0.03]
[1741245778142,52.66790246,149.61,149.59,0.03]
[1741245779441,11.66830246,149.6,149.59,0.03]
[1741245779860,11.66830246,149.6,149.59,17.40313612]
[1741245779861,4.98390246,149.6,149.59,17.40313612]
[1741245780740,4.98390246,149.6,149.59,42.01278498]
[1741245781153,4.98390246,149.62,149.6,0.56864628]
[1741245781359,4.98390246,149.62,149.61,17.37313612]
[1741245781567,4.98390246,149.62,149.61,24.05713612]
[1741245782259,4.98390246,149.62,149.61,42.70678498]
[1741245782461,0.033,149.63,149.62,0.56864628]
[1741245782655,0.033,149.63,149.62,17.37313612]
[1741245783361,0.033,149.63,149.62,329.37313612]
[1741245784639,0.033,149.63,149.62,312.56864628]
[1741245784837,0.033,149.63,149.62,312.0]
[1741245785143,0.033,149.63,149.61,16.80448984]
[1741245786167,4.99414091,149.62,149.61,0.56864628]
[1741245786344,4.99414091,149.62,149.61,17.37313612]
[1741245786543,4.99414091,149.62,149.61,17.08881298]
[1741245786758,4.99414091,149.62,149.61,17.37313612]
[1741245787363,0.033,149.63,149.62,0.14216157]
[1741245787564,6.7161,149.63,149.62,16.94665141]
[1741245787859,80.8,149.62,149.59,0.03]
[1741245788046,80.8,149.61,149.59,312.03]
[1741245788247,80.8,149.6,149.59,0.03]
[1741245788862,87.4844,149.6,149.59,0.03]
[1741245789861,92.47905292,149.6,149.59,0.17216157]
[1741245790063,92.47905292,149.6,149.59,16.97665141]
[1741245790857,92.47905292,149.6,149.59,0.17216157]
[1741245791466,92.47905292,149.6,149.59,0.03]
[1741245791663,92.47905292,149.6,149.59,0.17216157]
[1741245791865,85.79465292,149.6,149.59,16.97665141]
[1741245792248,92.47905292,149.6,149.59,16.97665141]
[1741245792869,85.79465292,149.6,149.59,16.97665141]
[1741245793368,92.47905292,149.6,149.59,16.97665141]
[1741245793963,85.79465292,149.6,149.59,17.40313612]
[1741245794371,85.79465292,149.6,149.59,329.40313612]
[1741245794952,80.8,149.6,149.59,329.40313612]
[1741245795360,0.033,149.62,149.61,0.14216157]
[1741245795665,0.033,149.62,149.61,17.37313612]
[1741245798475,0.033,149.62,149.61,329.37313612]
[1741245800860,5.03472864,149.62,149.61,328.80448984]
[1741245801061,5.03472864,149.62,149.61,16.80448984]
[1741245801383,6.684,149.61,149.6,17.37313612]
[1741245801681,11.68572864,149.61,149.6,17.37313612]
[1741245802483,5.00172864,149.61,149.6,17.37313612]
[1741245802682,5.00172864,149.61,149.6,17.23097455]
[1741245802986,5.00172864,149.61,149.6,17.37313612]
[1741245803984,11.68572864,149.61,149.6,0.56864628]
[1741245804288,11.68572864,149.61,149.6,312.56864628]
[1741245805266,92.48572864,149.61,149.6,312.14216157]
[1741245805573,92.48572864,149.61,149.6,0.14216157]
[1741245810191,85.80172864,149.61,149.6,0.14216157]
[1741245810396,85.80172864,149.61,149.6,16.94665141]
[1741245810778,92.48572864,149.61,149.6,0.14216157]
[1741245814024,92.48572864,149.61,149.6,0.56864628]
[1741245814177,85.80172864,149.61,149.6,17.37313612]
[1741245814387,92.48572864,149.61,149.6,17.37313612]
[1741245815000,85.80172864,149.61,149.6,17.37313612]
[1741245815580,85.80172864,149.61,149.6,329.37313612]
[1741245816097,92.48572864,149.61,149.6,329.37313612]
[1741245816297,92.48572864,149.61,149.6,312.14216157]
[1741245816723,92.48572864,149.61,149.6,0.14216157]
[1741245817203,11.68572864,149.61,149.6,0.14216157]
[1741245824034,41.0,149.6,149.59,0.0001]
[1741245824201,13.23032864,149.61,149.59,0.0001]
[1741245824510,24.84464886,149.6,149.59,0.0001]
[1741245824885,29.8463775,149.6,149.59,0.0001]
[1741245825906,36.5307775,149.6,149.59,0.0001]
[1741245826613,17.88112864,149.6,149.59,0.0001]
[1741245827104,11.68612864,149.6,149.59,0.0001]
[1741245829050,52.68612864,149.6,149.59,0.0001]
[1741245829233,46.00172864,149.6,149.59,17.37323612]
[1741245829400,5.00172864,149.6,149.59,17.37323612]
[1741245829912,5.00172864,149.6,149.59,329.37323612]
[1741245831717,11.68612864,149.6,149.59,0.56874628]
[1741245832120,11.68612864,149.6,149.59,0.0001]
[1741245837109,11.71912864,149.6,149.59,0.0001]
[1741245838024,5.03472864,149.6,149.59,0.0001]
[1741245838216,5.03472864,149.6,149.59,16.94675141]
[1741245838622,5.03472864,149.6,149.59,17.37323612]
[1741245839500,11.71912864,149.6,149.59,0.14226157]
[1741245839902,11.71912864,149.6,149.59,312.14226157]
[1741245842407,5.03472864,149.6,149.59,328.94675141]
[1741245842605,11.71912864,149.6,149.59,312.14226157]
[1741245845332,11.71912864,149.6,149.59,328.94675141]
[1741245845835,5.03472864,149.6,149.59,328.94675141]
[1741245846220,5.03472864,149.6,149.59,17.37323612]
[1741245846733,5.03472864,149.6,149.59,24.05813612]
[1741245847252,11.71912864,149.6,149.59,0.14226157]
[1741245851817,11.71912864,149.6,149.59,0.56874628]
[1741245852015,11.71912864,149.6,149.59,17.37323612]
[1741245852627,11.71912864,149.6,149.59,329.37323612]
[1741245854520,11.71912864,149.6,149.59,312.56874628]
[1741245855536,11.71912864,149.6,149.59,312.0001]
[1741245855729,52.71912864,149.6,149.59,0.0001]
[1741245855935,11.71912864,149.6,149.59,0.0001]
[1741245857413,30.3687775,149.6,149.53,0.03]
[1741245857619,18.64964886,149.59,149.53,0.03]
[1741245858218,20.0,149.56,149.53,0.03]
[1741245858635,20.0,149.56,149.53,312.17216157]
[1741245858831,26.6867,149.55,149.53,0.03]
[1741245859426,43.4035,149.55,149.49,0.03]
[1741245859624,43.4035,149.55,149.49,16.83448984]
[1741245859928,85.80172864,149.54,149.5,17.37313612]
[1741245860830,23.4081,149.52,149.49,0.03]
[1741245861038,80.8,149.51,149.49,0.03]
[1741245861650,121.8,149.51,149.49,0.03]
[1741245862239,5.00172864,149.5,149.49,0.03]
[1741245863022,11.69062864,149.5,149.49,0.03]
[1741245863625,11.69062864,149.5,149.49,17.40313612]
[1741245863626,5.00172864,149.5,149.49,17.40313612]
[1741245864747,5.00172864,149.5,149.49,0.17216157]
[1741245864940,11.69062864,149.5,149.49,0.17216157]
[1741245865139,6.6889,149.5,149.49,0.17216157]
[1741245865523,87.4885,149.51,149.5,0.14216157]
[1741245866033,121.8,149.5,149.49,0.0001]
[1741245866233,6.6885,149.51,149.49,0.0001]
[1741245866551,20.0,149.5,149.49,0.0001]
[1741245867747,26.6889,149.5,149.49,0.0001]
[1741245868137,31.67543978,149.5,149.49,0.0001]
[1741245870130,11.67543978,149.5,149.49,0.0001]
[1741245871642,11.67543978,149.5,149.49,0.14226157]
[1741245871825,4.98653978,149.5,149.49,17.37323612]
[1741245872838,4.98653978,149.5,149.49,329.37323612]
[1741245873252,6.72770001,149.53,149.5,0.56864628]
[1741245873552,0.04000001,149.53,149.52,17.37313612]
[1741245874071,0.04000001,149.53,149.5,0.42648471]
[1741245874945,0.04000001,149.53,149.5,17.23097455]
[1741245876342,0.04000001,149.53,149.52,0.14216157]
[1741245877139,0.04000001,149.53,149.51,0.14216157]
[1741245878867,0.04000001,149.53,149.52,17.37313612]
[1741245879840,0.04000001,149.53,149.52,329.37313612]
[1741245880435,0.04000001,149.53,149.52,17.37313612]
[1741245883135,0.04000001,149.53,149.49,16.80458984]
[1741245883437,80.8,149.52,149.5,0.14216157]
[1741245884861,4.98007217,149.51,149.5,0.14216157]
[1741245885155,11.66857217,149.51,149.5,0.14216157]
[1741245886356,11.66857217,149.51,149.49,0.0001]
[1741245887358,92.46857217,149.51,149.49,0.0001]
[1741245888058,4.98007217,149.5,149.49,0.0001]
[1741245888358,85.78007217,149.5,149.49,0.0001]
[1741245888762,92.46897217,149.5,149.49,0.0001]
[1741245890271,11.66897217,149.5,149.49,0.0001]
[1741245891768,11.66897217,149.5,149.47,0.0001]
[1741245891942,28.39137217,149.5,149.47,0.0001]
[1741245892684,4.98007217,149.49,149.47,0.0001]
[1741245892969,128.4898,149.48,149.47,0.0001]
[1741245893756,133.46987217,149.48,149.47,0.0001]
[1741245895975,126.78007217,149.48,149.47,0.14226157]
[1741245896150,126.78007217,149.48,149.47,16.94675141]
[1741245897163,133.46987217,149.48,149.47,16.94675141]
[1741245897351,92.46987217,149.48,149.47,16.94675141]
[1741245897877,92.46987217,149.48,149.47,0.0001]
[1741245901676,52.66987217,149.48,149.47,0.0001]
[1741245906079,45.98007217,149.48,149.47,0.14226157]
[1741245906375,4.98007217,149.48,149.47,0.14226157]
[1741245906968,4.98007217,149.48,149.47,312.56874628]
[1741245907165,11.66987217,149.48,149.47,312.56874628]
[1741245908367,4.98007217,149.48,149.47,312.56874628]
[1741245908766,11.66987217,149.48,149.47,312.56874628]
[1741245909088,5.01307217,149.48,149.47,312.56874628]
[1741245909252,5.01307217,149.48,149.47,329.37323612]
[1741245909457,11.70287217,149.48,149.47,312.56874628]
[1741245909757,5.01307217,149.48,149.47,312.56874628]
[1741245909955,11.70287217,149.48,149.47,312.14226157]
[1741245910373,5.01307217,149.48,149.47,312.56874628]
[1741245910565,11.70287217,149.48,149.47,312.56874628]
[1741245912161,11.70287217,149.48,149.47,0.14226157]
[1741245912377,11.70287217,149.48,149.47,0.0001]
[1741245915385,11.70287217,149.48,149.47,312.56874628]
[1741245916276,11.70287217,149.48,149.47,312.14226157]
[1741245917378,5.01307217,149.48,149.47,312.14226157]
[1741245917577,5.01307217,149.48,149.47,312.56874628]
[1741245917885,5.01307217,149.48,149.47,329.37323612]
[1741245918286,11.70287217,149.48,149.47,329.37323612]
[1741245918866,11.70287217,149.48,149.47,312.14226157]
[1741245919886,11.70287217,149.48,149.47,312.56874628]
[1741245920089,5.01307217,149.48,149.47,329.37323612]
[1741245920474,5.01307217,149.48,149.47,323.35108117]
[1741245921792,5.01307217,149.48,149.47,11.35108117]
[1741245922168,5.01307217,149.48,149.47,18.04138117]
[1741245922671,5.01307217,149.48,149.47,36.69103003]
[1741245922868,0.033,149.51,149.48,0.56864628]
[1741245923064,0.033,149.51,149.5,11.35098117]
[1741245924592,0.033,149.51,149.5,17.4005124]
[1741245924777,0.033,149.51,149.5,329.4005124]
[1741245926088,0.07300001,149.51,149.5,329.4005124]
[1741245926804,0.07300001,149.51,149.5,404.73906126]
[1741245927286,0.07300001,149.51,149.5,354.73906126]
[1741245927507,20.0,149.56,149.51,19.21829514]
[1741245927669,20.0,149.56,149.55,0.56864628]
[1741245928698,26.6862,149.56,149.55,0.56864628]
[1741245928899,6.6853,149.58,149.55,17.4005124]
[1741245930300,23.3987,149.58,149.55,17.4005124]
[1741245930505,23.3987,149.58,149.55,0.56864628]
[1741245930679,23.3987,149.58,149.57,312.14216157]
[1741245931287,23.3987,149.58,149.53,16.83186612]
[1741245931481,121.8,149.57,149.46,139.5921]
[1741245931682,121.8,149.56,149.5,16.83186612]
[1741245931881,80.8,149.55,149.5,16.83186612]
[1741245932289,80.8,149.54,149.51,312.0]
[1741245932501,6.6876,149.53,149.51,312.0]
[1741245932671,6.6876,149.53,149.52,0.56864628]
[1741245932994,87.4876,149.53,149.52,0.14216157]
[1741245933196,87.4876,149.53,149.51,0.42648471]
[1741245934501,87.4876,149.53,149.51,17.25835083]
[1741245935802,87.4876,149.53,149.51,329.25835083]
[1741245937898,80.8,149.53,149.52,0.14216157]
[1741245938095,80.8,149.53,149.52,17.4005124]
[1741245938403,87.4876,149.53,149.52,17.4005124]
[1741245938779,87.4876,149.53,149.52,0.56864628]
[1741245939297,87.4876,149.53,149.52,17.4005124]
[1741245939691,87.4876,149.53,149.52,0.56864628]
[1741245940284,87.4876,149.53,149.52,17.4005124]
[1741245940502,80.8,149.53,149.52,17.4005124]
[1741245940701,47.6868,149.55,149.53,0.14216157]
[1741245941008,41.0,149.55,149.54,329.4005124]
[1741245941192,6.6863,149.56,149.55,0.56864628]
[1741245941377,6.6863,149.56,149.55,17.4005124]
[1741245941702,87.4859,149.57,149.56,0.56864628]
[1741245944400,87.4859,149.57,149.56,312.56864628]
[1741245945495,87.4859,149.57,149.56,312.14216157]
[1741245948585,87.4859,149.57,149.56,0.14216157]
[1741245951625,87.4859,149.57,149.56,312.14216157]
[1741245952184,87.4859,149.57,149.56,312.56864628]
[1741245954522,80.8,149.57,149.56,323.34111039]
[1741245955951,80.8,149.57,149.56,11.34111039]
[1741245956747,6.718,149.59,149.57,0.56864628]
[1741245956931,0.033,149.59,149.58,10.91462568]
[1741245957850,0.033,149.59,149.58,0.14216157]
[1741245958623,80.8,149.58,149.56,0.03]
[1741245958824,87.4853,149.58,149.57,0.14216157]
[1741245959443,80.8,149.57,149.56,312.03]
[1741245959627,80.8,149.57,149.56,312.17216157]
[1741245960953,87.4858,149.57,149.56,312.17216157]
[1741245961842,87.4858,149.57,149.56,312.59864628]
[1741245962047,80.8,149.57,149.56,312.59864628]
[1741245962240,80.8,149.57,149.56,0.59864628]
[1741245962450,80.8,149.57,149.56,11.37111039]
[1741245962628,80.833,149.59,149.57,0.14216157]
[1741245962833,6.6853,149.58,149.57,0.56864628]
[1741245964748,0.033,149.59,149.57,11.34111039]
[1741245965053,0.033,149.59,149.58,10.91462568]
[1741245965255,0.033,149.59,149.58,322.91462568]
[1741245965565,0.033,149.59,149.58,312.14216157]
[1741245965725,0.033,149.59,149.58,322.91462568]
[1741245965920,0.033,149.59,149.58,323.34111039]
[1741245966128,0.033,149.59,149.58,366.43096683]
[1741245966335,0.033,149.59,149.58,441.04061569]
[1741245967069,0.033,149.59,149.58,447.72591569]
[1741245967865,0.033,149.6,149.59,0.56864628]
[1741245968027,0.033,149.6,149.59,11.34111039]
[1741245969050,0.033,149.6,149.59,29.99075925]
[1741245969229,0.033,149.6,149.59,36.67565925]
[1741245970044,0.033,149.62,149.61,0.56864628]
[1741245970348,0.033,149.63,149.61,29.99075925]
[1741245970520,0.033,149.63,149.62,29.99075925]
[1741245970724,0.033,149.63,149.62,79.99075925]
[1741245970926,0.033,149.63,149.62,391.99075925]
[1741245971325,0.033,149.63,149.62,398.67425925]
[1741245973830,0.033,149.66,149.65,0.56864628]
[1741245974151,0.033,149.66,149.65,11.34111039]
[1741245976946,0.033,149.66,149.65,323.34111039]
[1741245977449,0.033,149.66,149.65,312.28432314]
[1741245977852,0.033,149.66,149.65,312.56864628]
[1741245978144,0.033,149.66,149.62,10.77246411]
[1741245978145,23.4193,149.66,149.62,10.77246411]
[1741245978346,23.4193,149.66,149.62,0.42648471]
[1741245978347,80.8,149.65,149.62,0.42648471]
[1741245978554,80.8,149.65,149.6,10.77246411]
[1741245978754,80.8,149.65,149.61,0.56864628]
[1741245980057,6.6827,149.64,149.61,0.56864628]
[1741245980246,6.6827,149.64,149.61,11.19894882]
[1741245981058,6.6827,149.64,149.62,0.14216157]
[1741245981441,121.8,149.63,149.58,10.77246411]
[1741245981649,121.8,149.63,149.56,0.03]
[1741245981650,121.8,149.62,149.57,10.77246411]
[1741245981848,121.8,149.62,149.58,0.56864628]
[1741245982548,23.3941,149.61,149.58,0.56864628]
[1741245982743,121.8,149.6,149.56,0.03]
[1741245982949,121.8,149.59,149.56,0.03]
[1741245983745,127.14666665,149.59,149.56,0.03]
[1741245984458,127.14666665,149.59,149.56,0.14226157]
[1741245984665,6.6853,149.58,149.56,0.14226157]
[1741245984848,121.8,149.57,149.56,0.0001]
[1741245985050,6.6853,149.58,149.56,0.0001]
[1741245985441,6.6853,149.58,149.56,0.14226157]
[1741245986744,20.0,149.57,149.56,0.14226157]
[1741245987147,20.0,149.57,149.56,0.0001]
[1741245987995,21.5383,149.56,149.55,0.0001]
[1741245988267,28.1938,149.56,149.55,0.0001]
[1741245988462,20.0,149.52,149.47,16.83708175]
[1741245988670,20.0,149.52,149.51,0.14216157]
[1741245988980,20.0,149.52,149.51,16.97914332]
[1741245989157,26.6867,149.55,149.52,0.14216157]
[1741245989361,43.4035,149.55,149.52,0.14216157]
[1741245989869,43.4035,149.55,149.5,0.14216157]
[1741245990249,43.4035,149.55,149.5,312.14216157]
[1741245992050,76.8371,149.55,149.5,312.14216157]
[1741245992370,121.8,149.54,149.5,312.14216157]
[1741245993147,23.4066,149.53,149.5,312.14216157]
[1741245993753,121.8,149.52,149.47,0.14226157]
[1741245993973,23.4066,149.53,149.47,0.14226157]
[1741245993974,121.8,149.51,149.47,0.14226157]
[1741245995070,6.6889,149.5,149.48,0.14216157]
[1741245995966,20.0,149.49,149.48,0.56864628]
[1741245996268,20.0,149.49,149.48,0.14216157]
[1741245996849,20.0,149.49,149.48,312.14216157]
[1741245997267,26.6894,149.49,149.48,312.14216157]
[1741246000251,26.6894,149.49,149.47,0.0001]
[1741246000447,121.8,149.48,149.47,0.0001]
[1741246000654,6.6894,149.49,149.45,0.0001]
[1741246000872,121.8,149.48,149.4,16.86698175]
[1741246001070,121.8,149.47,149.41,0.14216157]
[1741246001272,121.8,149.47,149.4,16.86698175]
[1741246001577,23.4175,149.46,149.4,16.86698175]
[1741246001776,23.4175,149.46,149.41,0.14216157]
[1741246001980,23.4175,149.46,149.4,16.86698175]
[1741246002274,140.44964886,149.45,149.4,0.03]
[1741246002578,121.8,149.44,149.4,0.17216157]
[1741246002958,121.8,149.44,149.4,0.03]
[1741246003161,121.8,149.44,149.41,0.14216157]
[1741246003374,121.8,149.44,149.4,312.03]
[1741246003571,121.8,149.44,149.41,0.14216157]
[1741246003773,6.692,149.43,149.41,0.14216157]
[1741246006562,20.0,149.41,149.4,0.17216157]
[1741246007163,20.0,149.41,149.4,10.9662737]
[1741246007477,20.0,149.41,149.4,0.17216157]
[1741246007680,20.0,149.41,149.4,0.03]
[1741246007681,6.6929,149.41,149.4,0.03]
[1741246007982,6.6929,149.41,149.38,0.03]
[1741246007983,23.4253,149.41,149.38,0.03]
[1741246008282,6.6929,149.41,149.38,0.03]
[1741246008475,6.6929,149.41,149.39,0.14216157]
[1741246009081,6.6929,149.41,149.4,0.14216157]
[1741246009476,6.6929,149.41,149.4,312.14216157]
[1741246009658,24.5536,149.43,149.4,312.14216157]
[1741246009862,6.6925,149.42,149.4,322.9362737]
[1741246010881,6.6925,149.42,149.4,312.14216157]
[1741246012880,6.6925,149.42,149.4,322.9362737]
[1741246013081,6.6925,149.42,149.4,312.14216157]
[1741246013278,47.6925,149.42,149.4,312.14216157]
[1741246017197,47.6925,149.42,149.4,322.9362737]
[1741246017371,47.6925,149.42,149.41,10.9362737]
[1741246019389,47.6925,149.42,149.41,0.14216157]
[1741246021082,47.6925,149.42,149.41,10.9362737]
[1741246021282,47.6925,149.42,149.41,322.9362737]
[1741246023005,41.0,149.42,149.41,323.36275841]
[1741246023185,41.0,149.42,149.41,11.36275841]
[1741246024177,0.033,149.43,149.42,0.14216157]
[1741246024385,0.033,149.43,149.42,10.9362737]
[1741246025309,0.033,149.43,149.42,11.36275841]
[1741246026109,0.033,149.43,149.42,323.36275841]
[1741246028431,0.033,149.43,149.42,11.36275841]
[1741246030400,0.033,149.43,149.4,0.03]
[1741246030821,0.033,149.43,149.4,11.25059684]
[1741246031527,0.033,149.43,149.4,323.25059684]
[1741246031741,0.033,149.43,149.4,11.25059684]
[1741246031922,0.033,149.43,149.4,0.03]
[1741246031923,123.4314,149.42,149.4,0.03]
[1741246032302,121.8,149.42,149.4,0.03]
[1741246033121,6.6929,149.41,149.4,0.03]
[1741246034322,23.4253,149.41,149.38,0.03]
[1741246034706,23.4253,149.41,149.38,322.9662737]
[1741246035626,23.4253,149.41,149.38,312.17216157]
[1741246036732,121.8,149.4,149.34,10.82411213]
[1741246036921,121.8,149.39,149.35,0.14216157]
[1741246037714,23.4301,149.38,149.35,0.14216157]
[1741246037930,23.4301,149.38,149.34,10.82411213]
[1741246038223,23.4301,149.38,149.36,0.14216157]
[1741246038422,23.4301,149.38,149.35,10.79411213]
[1741246038600,6.6943,149.38,149.37,10.9362737]
[1741246038932,87.4943,149.38,149.37,10.9362737]
[1741246039528,87.4943,149.38,149.37,322.9362737]
[1741246039731,80.8,149.38,149.37,323.36275841]
[1741246040524,87.4943,149.38,149.37,322.9362737]
[1741246040820,87.4943,149.38,149.37,10.9362737]
[1741246041819,87.4943,149.38,149.37,10.9662737]
[1741246043915,87.4943,149.38,149.37,322.9662737]
[1741246044534,80.8,149.38,149.37,11.39275841]
[1741246044745,80.8,149.39,149.38,0.56864628]
[1741246045037,80.8,149.39,149.38,11.36275841]
[1741246045835,80.8,149.39,149.38,0.56864628]
[1741246046010,80.8,149.39,149.38,11.36275841]
[1741246047108,0.033,149.41,149.38,11.36275841]
[1741246047313,0.033,149.41,149.4,11.36275841]
[1741246047528,0.033,149.41,149.4,323.36275841]
[1741246048121,0.033,149.41,149.4,54.53920693]
[1741246048809,0.033,149.43,149.41,0.56864628]
[1741246049019,0.033,149.43,149.42,11.36275841]
[1741246050141,41.0,149.47,149.43,0.56864628]
[1741246050340,87.49,149.48,149.47,0.14216157]
[1741246050632,80.8,149.48,149.47,10.9362737]
[1741246050836,87.4898,149.48,149.47,10.9362737]
[1741246051041,87.4898,149.48,149.47,322.9362737]
[1741246051531,80.8,149.48,149.47,322.9362737]
[1741246051734,87.4898,149.48,149.47,322.9362737]
[1741246052232,87.4898,149.48,149.47,312.14216157]
[1741246052438,87.4898,149.48,149.46,0.14216157]
[1741246054139,87.5228,149.48,149.46,0.14216157]
[1741246054440,80.8,149.47,149.44,0.14216157]
[1741246054640,121.8,149.46,149.44,0.14216157]
[1741246054841,121.8,149.46,149.43,10.9362737]
[1741246055340,121.8,149.46,149.43,322.9362737]
[1741246056028,6.6912,149.45,149.44,11.36275841]
[1741246057117,80.8,149.46,149.45,0.56864628]
[1741246057323,6.723,149.48,149.45,11.36275841]
[1741246057530,6.723,149.48,149.47,10.79411213]
[1741246057737,6.723,149.48,149.47,10.9362737]
[1741246058248,0.033,149.48,149.47,0.14216157]
[1741246060940,41.033,149.48,149.47,0.14216157]
[1741246061939,41.033,149.48,149.47,10.9362737]
[1741246062243,41.033,149.48,149.47,0.14216157]
[1741246062422,47.7228,149.48,149.47,0.14216157]
[1741246067128,41.033,149.48,149.47,11.36275841]